[Event "Tournoi fermé pour norme de MI de Créon 2025"]
[Site "CREON, France"]
[Date "2025.09.01"]
[Round "7.2"]
[White "Kocharin, Timur"]
[Black "Lamaze, Simon"]
[Result "0-1"]
[TimeControl "1h30/40 - 30' + [30'']"]
[WhiteElo "2302"]
[BlackElo "2458"]

1. d4 {[%clk 01:24:49]} {[%emt 00:06:11]} Nf6 {[%clk 01:30:54]} {[%emt
00:00:06]} 2. c4 {[%clk 01:25:14]} {[%emt 00:00:05]} g6 {[%clk 01:30:25]}
{[%emt 00:01:00]} 3. Nf3 {[%clk 01:25:29]} {[%emt 00:00:14]} Bg7 {[%clk
01:30:45]} {[%emt 00:00:11]} 4. g3 {[%clk 01:25:47]} {[%emt 00:00:12]} b6
{[%clk 01:30:52]} {[%emt 00:00:23]} 5. Bg2 {[%clk 01:25:22]} {[%emt 00:00:55]}
Bb7 {[%clk 01:31:18]} {[%emt 00:00:04]} 6. O-O {[%clk 01:25:47]} {[%emt
00:00:05]} O-O {[%clk 01:31:45]} {[%emt 00:00:02]} 7. d5 {[%clk 01:25:17]}
{[%emt 00:01:00]} Ne4 {[%clk 01:32:02]} {[%emt 00:00:13]} 8. Qc2 {[%clk
01:23:13]} {[%emt 00:02:34]} f5 {[%clk 01:31:11]} {[%emt 00:01:20]} 9. Nbd2
{[%clk 01:21:10]} {[%emt 00:02:33]} Nd6 {[%clk 01:27:55]} {[%emt 00:03:46]} 10.
e4 {[%clk 01:18:26]} {[%emt 00:03:14]} c6 {[%clk 01:25:11]} {[%emt 00:03:14]}
11. Re1 {[%clk 01:12:55]} {[%emt 00:06:00]} Na6 {[%clk 01:20:16]} {[%emt
00:05:26]} 12. e5 {[%clk 01:08:27]} {[%emt 00:04:57]} Nf7 {[%clk 01:19:10]}
{[%emt 00:01:36]} 13. e6 {[%clk 01:04:17]} {[%emt 00:04:40]} Nd6 {[%clk
01:18:06]} {[%emt 00:01:34]} 14. Ne5 {[%clk 01:03:35]} {[%emt 00:01:12]} cxd5
{[%clk 00:56:54]} {[%emt 00:21:42]} 15. Nxd7 {[%clk 01:01:30]} {[%emt
00:02:34]} Re8 {[%clk 00:56:22]} {[%emt 00:01:02]} 16. cxd5 {[%clk 01:00:00]}
{[%emt 00:02:00]} Rc8 {[%clk 00:56:22]} {[%emt 00:00:31]} 17. Qb3 {[%clk
00:54:39]} {[%emt 00:05:50]} Nc5 {[%clk 00:53:38]} {[%emt 00:03:15]} 18. Nxc5
{[%clk 00:54:36]} {[%emt 00:00:32]} Rxc5 {[%clk 00:54:03]} {[%emt 00:00:05]} 19.
Nf1 {[%clk 00:54:08]} {[%emt 00:00:57]} Qa8 {[%clk 00:43:30]} {[%emt 00:11:04]}
20. Ne3 {[%clk 00:50:43]} {[%emt 00:03:54]} Rf8 {[%clk 00:42:51]} {[%emt
00:01:10]} 21. Bd2 {[%clk 00:38:57]} {[%emt 00:12:16]} f4 {[%clk 00:41:17]}
{[%emt 00:02:04]} 22. gxf4 {[%clk 00:37:31]} {[%emt 00:01:54]} Rxf4 {[%clk
00:41:02]} {[%emt 00:00:46]} 23. Bb4 {[%clk 00:32:54]} {[%emt 00:05:07]} Rb5
{[%clk 00:32:39]} {[%emt 00:08:54]} 24. Bxd6 {[%clk 00:33:14]} {[%emt
00:00:10]} Rxb3 {[%clk 00:33:07]} {[%emt 00:00:02]} 25. Bxf4 {[%clk 00:33:37]}
{[%emt 00:00:07]} Rxb2 {[%clk 00:24:21]} {[%emt 00:09:17]} 26. Rad1 {[%clk
00:33:15]} {[%emt 00:00:51]} Bc3 {[%clk 00:23:02]} {[%emt 00:01:49]} 27. Rf1
{[%clk 00:28:16]} {[%emt 00:05:28]} Bb4 {[%clk 00:15:13]} {[%emt 00:08:20]} 28.
d6 {[%clk 00:23:45]} {[%emt 00:05:01]} Bxd6 {[%clk 00:15:33]} {[%emt 00:00:10]}
29. Bxb7 {[%clk 00:20:15]} {[%emt 00:04:00]} Qxb7 {[%clk 00:15:56]} {[%emt
00:00:07]} 30. Bxd6 {[%clk 00:20:40]} {[%emt 00:00:05]} exd6 {[%clk 00:16:21]}
{[%emt 00:00:06]} 31. Nd5 {[%clk 00:20:39]} {[%emt 00:00:31]} Re2 {[%clk
00:16:38]} {[%emt 00:00:13]} 32. Rfe1 {[%clk 00:20:52]} {[%emt 00:00:16]} Qxd5
{[%clk 00:16:17]} {[%emt 00:00:52]} 33. Rxd5 {[%clk 00:16:30]} {[%emt
00:04:51]} Rxe1+ {[%clk 00:16:38]} {[%emt 00:00:09]} 34. Kg2 {[%clk 00:16:58]}
{[%emt 00:00:03]} Rxe6 {[%clk 00:17:02]} {[%emt 00:00:06]} 35. a4 {[%clk
00:17:25]} {[%emt 00:00:03]} Re4 {[%clk 00:15:56]} {[%emt 00:01:35]} 36. a5
{[%clk 00:17:40]} {[%emt 00:00:15]} Re5 {[%clk 00:16:06]} {[%emt 00:00:19]} 37.
Rxd6 {[%clk 00:17:54]} {[%emt 00:00:16]} Rxa5 {[%clk 00:16:31]} {[%emt
00:00:05]} 38. Rd7 {[%clk 00:18:16]} {[%emt 00:00:08]} Rg5+ {[%clk 00:16:03]}
{[%emt 00:00:59]} 39. Kf1 {[%clk 00:18:23]} {[%emt 00:00:23]} a5 {[%clk
00:16:26]} {[%emt 00:00:06]} 40. Ra7 {[%clk 00:18:31]} {[%emt 00:00:22]} Rb5
{[%clk 00:16:36]} {[%emt 00:00:20]} 41. Kg2 {[%clk 00:18:47]} {[%emt 00:00:14]}
Rb4 {[%clk 00:16:44]} {[%emt 00:00:22]} 42. Kg3 {[%clk 00:19:11]} {[%emt
00:00:05]} g5 {[%clk 00:17:09]} {[%emt 00:00:05]} 0-1

[Event "Tournoi fermé pour norme de MI de Créon 2025"]
[Site "CREON, France"]
[Date "2025.09.01"]
[Round "7.5"]
[White "Llari, Marc"]
[Black "Mohammad Nubairshah"]
[Result "1/2-1/2"]
[TimeControl "1h30/40 - 30' + [30'']"]
[WhiteElo "2341"]
[BlackElo "2378"]

1. Nf3 {[%clk 01:30:59]} {[%emt 00:27:09]} d5 {[%clk 01:29:58]} {[%emt
00:01:02]} 2. e3 {[%clk 01:31:25]} {[%emt 00:00:04]} Nf6 {[%clk 01:29:09]}
{[%emt 00:01:19]} 3. c4 {[%clk 01:31:35]} {[%emt 00:00:20]} e6 {[%clk
01:28:43]} {[%emt 00:00:57]} 4. Nc3 {[%clk 01:32:00]} {[%emt 00:00:05]} c5
{[%clk 01:27:30]} {[%emt 00:01:43]} 5. cxd5 {[%clk 01:32:25]} {[%emt 00:00:05]}
Nxd5 {[%clk 01:24:11]} {[%emt 00:03:49]} 6. d4 {[%clk 01:29:33]} {[%emt
00:03:21]} cxd4 {[%clk 01:23:21]} {[%emt 00:01:20]} 7. Nxd5 {[%clk 01:29:11]}
{[%emt 00:00:52]} Qxd5 {[%clk 01:21:22]} {[%emt 00:02:29]} 8. Qxd4 {[%clk
01:29:16]} {[%emt 00:00:25]} Qxd4 {[%clk 01:19:51]} {[%emt 00:02:01]} 9. Nxd4
{[%clk 01:29:40]} {[%emt 00:00:06]} e5 {[%clk 01:09:13]} {[%emt 00:11:08]} 10.
Nb5 {[%clk 01:24:16]} {[%emt 00:05:53]} Bb4+ {[%clk 01:09:31]} {[%emt
00:00:13]} 11. Bd2 {[%clk 01:24:31]} {[%emt 00:00:15]} Bxd2+ {[%clk 01:09:35]}
{[%emt 00:00:26]} 12. Kxd2 {[%clk 01:24:55]} {[%emt 00:00:06]} Na6 {[%clk
01:10:00]} {[%emt 00:00:05]} 13. Rc1 {[%clk 01:18:51]} {[%emt 00:06:34]} Ke7
{[%clk 01:10:27]} {[%emt 00:00:03]} 14. Bc4 {[%clk 01:17:59]} {[%emt 00:01:22]}
Bd7 {[%clk 00:58:07]} {[%emt 00:12:50]} 15. Nc3 {[%clk 01:09:34]} {[%emt
00:08:53]} Nc7 {[%clk 00:56:57]} {[%emt 00:01:40]} 16. Ke2 {[%clk 01:09:15]}
{[%emt 00:00:49]} b5 {[%clk 00:41:45]} {[%emt 00:15:43]} 17. Nd5+ {[%clk
01:04:34]} {[%emt 00:05:11]} Nxd5 {[%clk 00:41:59]} {[%emt 00:00:16]} 18. Bxd5
{[%clk 01:04:59]} {[%emt 00:00:05]} Rac8 {[%clk 00:42:21]} {[%emt 00:00:08]} 19.
Bb7 {[%clk 01:03:41]} {[%emt 00:01:48]} Rc4 {[%clk 00:33:05]} {[%emt 00:09:46]}
20. Bd5 {[%clk 01:02:09]} {[%emt 00:02:02]} 1/2-1/2

[ePGN "0.1;DGT LiveChess/2.2.7"]

[Event "Tournoi fermé pour norme de MI de Créon 2025"]
[Site "CREON, France"]
[Date "2025.08.02"]
[Round "8.3"]
[White "Lacan-Rus, David"]
[Black "Kocharin, Timur"]
[Result "1-0"]
[TimeControl "1h30/40 - 30' + [30'']"]
[WhiteElo "2369"]
[BlackElo "2302"]

1. e4 {[%clk 01:30:57]} {[%emt 00:00:01]} c6 {[%clk 01:30:17]} {[%emt
00:00:44]} 2. d4 {[%clk 01:29:35]} {[%emt 00:01:52]} d5 {[%clk 01:30:39]}
{[%emt 00:00:08]} 3. Nc3 {[%clk 01:29:58]} {[%emt 00:00:08]} dxe4 {[%clk
01:30:21]} {[%emt 00:00:48]} 4. Nxe4 {[%clk 01:30:18]} {[%emt 00:00:08]} Nf6
{[%clk 01:30:47]} {[%emt 00:00:05]} 5. Nxf6+ {[%clk 01:30:19]} {[%emt
00:00:30]} exf6 {[%clk 01:31:11]} {[%emt 00:00:07]} 6. c3 {[%clk 01:30:12]}
{[%emt 00:00:37]} Bd6 {[%clk 01:31:22]} {[%emt 00:00:18]} 7. Bd3 {[%clk
01:29:58]} {[%emt 00:00:45]} O-O {[%clk 01:31:36]} {[%emt 00:00:16]} 8. Qc2
{[%clk 01:30:23]} {[%emt 00:00:05]} Re8+ {[%clk 01:31:59]} {[%emt 00:00:06]} 9.
Ne2 {[%clk 01:30:47]} {[%emt 00:00:06]} h6 {[%clk 01:32:22]} {[%emt 00:00:07]}
10. O-O {[%clk 01:25:28]} {[%emt 00:05:48]} Nd7 {[%clk 01:32:12]} {[%emt
00:00:41]} 11. Be3 {[%clk 01:23:25]} {[%emt 00:02:33]} Nf8 {[%clk 01:31:39]}
{[%emt 00:01:04]} 12. c4 {[%clk 01:23:08]} {[%emt 00:00:47]} Bc7 {[%clk
01:27:13]} {[%emt 00:04:55]} 13. Rfe1 {[%clk 01:15:21]} {[%emt 00:08:18]} Bg4
{[%clk 01:15:59]} {[%emt 00:11:44]} 14. Ng3 {[%clk 01:07:32]} {[%emt 00:08:17]}
h5 {[%clk 01:12:35]} {[%emt 00:03:55]} 15. h3 {[%clk 01:04:13]} {[%emt
00:03:49]} h4 {[%clk 01:12:02]} {[%emt 00:01:05]} 16. Ne4 {[%clk 01:03:39]}
{[%emt 00:01:03]} Bh5 {[%clk 01:08:27]} {[%emt 00:04:05]} 17. Qd2 {[%clk
00:50:30]} {[%emt 00:13:40]} f5 {[%clk 00:55:28]} {[%emt 00:13:29]} 18. Nc5
{[%clk 00:47:51]} {[%emt 00:03:09]} b6 {[%clk 00:53:00]} {[%emt 00:02:59]} 19.
Na6 {[%clk 00:42:57]} {[%emt 00:05:23]} f4 {[%clk 00:40:41]} {[%emt 00:12:49]}
20. Bxf4 {[%clk 00:43:08]} {[%emt 00:00:19]} Bxf4 {[%clk 00:40:58]} {[%emt
00:00:13]} 21. Qxf4 {[%clk 00:43:15]} {[%emt 00:00:23]} Ne6 {[%clk 00:41:21]}
{[%emt 00:00:07]} 22. Qd2 {[%clk 00:34:46]} {[%emt 00:09:00]} Qf6 {[%clk
00:33:53]} {[%emt 00:07:57]} 23. Re5 {[%clk 00:29:16]} {[%emt 00:06:00]} Bg6
{[%clk 00:30:47]} {[%emt 00:03:37]} 24. Bxg6 {[%clk 00:28:56]} {[%emt
00:00:50]} Qxg6 {[%clk 00:30:53]} {[%emt 00:00:24]} 25. d5 {[%clk 00:25:45]}
{[%emt 00:03:41]} cxd5 {[%clk 00:29:52]} {[%emt 00:01:31]} 26. cxd5 {[%clk
00:26:05]} {[%emt 00:00:09]} Qf6 {[%clk 00:27:11]} {[%emt 00:03:11]} 27. Rae1
{[%clk 00:22:37]} {[%emt 00:03:57]} Red8 {[%clk 00:27:15]} {[%emt 00:00:27]} 28.
Qe3 {[%clk 00:20:44]} {[%emt 00:02:23]} Nf8 {[%clk 00:27:07]} {[%emt 00:00:38]}
29. Nc7 {[%clk 00:18:13]} {[%emt 00:03:01]} Rac8 {[%clk 00:26:28]} {[%emt
00:01:09]} 30. Ne8 {[%clk 00:17:09]} {[%emt 00:01:34]} Qg6 {[%clk 00:25:45]}
{[%emt 00:01:13]} 31. Kh1 {[%clk 00:14:31]} {[%emt 00:03:07]} Kh7 {[%clk
00:24:15]} {[%emt 00:02:00]} 32. Kg1 {[%clk 00:10:07]} {[%emt 00:04:54]} Kg8
{[%clk 00:24:21]} {[%emt 00:00:24]} 33. b3 {[%clk 00:09:12]} {[%emt 00:01:26]}
Kh7 {[%clk 00:24:35]} {[%emt 00:00:15]} 34. Kh1 {[%clk 00:08:46]} {[%emt
00:00:56]} Kg8 {[%clk 00:24:58]} {[%emt 00:00:07]} 35. f4 {[%clk 00:07:41]}
{[%emt 00:01:34]} Qg3 {[%clk 00:21:05]} {[%emt 00:04:23]} 36. Rg5 {[%clk
00:07:17]} {[%emt 00:00:55]} Rxe8 {[%clk 00:18:42]} {[%emt 00:02:53]} 37. Rxg3
{[%clk 00:07:40]} {[%emt 00:00:07]} Rxe3 {[%clk 00:19:05]} {[%emt 00:00:06]} 38.
Rgxe3 {[%clk 00:08:08]} {[%emt 00:00:03]} 1-0

[Event "Tournoi fermé pour norme de MI de Créon 2025"]
[Site "CREON, France"]
[Date "2025.08.02"]
[Round "8.4"]
[White "Jerez Perez, Alfonso"]
[Black "Llari, Marc"]
[Result "1-0"]
[TimeControl "1h30/40 - 30' + [30'']"]
[WhiteElo "2328"]
[BlackElo "2341"]

1. e4 {[%clk 01:30:49]} {[%emt 00:00:10]} c5 {[%clk 01:30:56]} {[%emt
00:00:04]} 2. c3 {[%clk 01:30:52]} {[%emt 00:00:27]} d5 {[%clk 01:31:24]}
{[%emt 00:00:02]} 3. exd5 {[%clk 01:31:16]} {[%emt 00:00:06]} Qxd5 {[%clk
01:31:51]} {[%emt 00:00:03]} 4. d4 {[%clk 01:31:37]} {[%emt 00:00:09]} Nc6
{[%clk 01:32:18]} {[%emt 00:00:04]} 5. Nf3 {[%clk 01:32:01]} {[%emt 00:00:05]}
Bf5 {[%clk 01:32:44]} {[%emt 00:00:03]} 6. Be3 {[%clk 01:32:16]} {[%emt
00:00:15]} cxd4 {[%clk 01:33:11]} {[%emt 00:00:04]} 7. Nxd4 {[%clk 01:32:36]}
{[%emt 00:00:09]} Nf6 {[%clk 01:33:37]} {[%emt 00:00:04]} 8. Nxf5 {[%clk
01:30:45]} {[%emt 00:02:21]} Qxf5 {[%clk 01:33:39]} {[%emt 00:00:28]} 9. Qa4
{[%clk 01:30:29]} {[%emt 00:00:46]} a6 {[%clk 01:28:48]} {[%emt 00:05:21]} 10.
Be2 {[%clk 01:22:56]} {[%emt 00:08:04]} e6 {[%clk 01:23:35]} {[%emt 00:05:42]}
11. Bf3 {[%clk 01:20:52]} {[%emt 00:02:34]} Rc8 {[%clk 01:18:12]} {[%emt
00:05:53]} 12. O-O {[%clk 01:20:16]} {[%emt 00:01:06]} Nd5 {[%clk 01:11:45]}
{[%emt 00:06:57]} 13. Bxd5 {[%clk 01:20:24]} {[%emt 00:00:22]} Qxd5 {[%clk
01:12:08]} {[%emt 00:00:07]} 14. Rd1 {[%clk 01:20:01]} {[%emt 00:00:53]} Qb5
{[%clk 00:57:09]} {[%emt 00:15:28]} 15. Qxb5 {[%clk 01:13:56]} {[%emt
00:06:37]} axb5 {[%clk 00:57:17]} {[%emt 00:00:21]} 16. Nd2 {[%clk 01:14:19]}
{[%emt 00:00:06]} Ne5 {[%clk 00:52:23]} {[%emt 00:05:21]} 17. b3 {[%clk
01:05:35]} {[%emt 00:09:18]} Ba3 {[%clk 00:47:26]} {[%emt 00:05:27]} 18. Bd4
{[%clk 01:01:31]} {[%emt 00:04:35]} Nc6 {[%clk 00:43:42]} {[%emt 00:04:14]} 19.
Bxg7 {[%clk 00:59:32]} {[%emt 00:02:29]} Rg8 {[%clk 00:44:08]} {[%emt
00:00:03]} 20. Bf6 {[%clk 00:58:21]} {[%emt 00:01:41]} Rg6 {[%clk 00:42:45]}
{[%emt 00:01:52]} 21. Ne4 {[%clk 00:49:48]} {[%emt 00:09:04]} Ne7 {[%clk
00:39:55]} {[%emt 00:03:20]} 22. b4 {[%clk 00:40:42]} {[%emt 00:09:38]} Rc6
{[%clk 00:38:00]} {[%emt 00:02:22]} 23. Bxe7 {[%clk 00:34:40]} {[%emt
00:06:35]} Kxe7 {[%clk 00:38:00]} {[%emt 00:00:29]} 24. Rab1 {[%clk 00:34:59]}
{[%emt 00:00:13]} f5 {[%clk 00:33:25]} {[%emt 00:05:03]} 25. Rb3 {[%clk
00:29:40]} {[%emt 00:05:51]} Bxb4 {[%clk 00:33:29]} {[%emt 00:00:25]} 26. Rxb4
{[%clk 00:29:50]} {[%emt 00:00:21]} fxe4 {[%clk 00:33:53]} {[%emt 00:00:05]} 27.
Rxb5 {[%clk 00:30:15]} {[%emt 00:00:06]} Rxc3 {[%clk 00:34:13]} {[%emt
00:00:10]} 28. Rxb7+ {[%clk 00:30:40]} {[%emt 00:00:06]} Kf6 {[%clk 00:34:36]}
{[%emt 00:00:05]} 29. Rb3 {[%clk 00:30:30]} {[%emt 00:00:39]} Rxb3 {[%clk
00:33:17]} {[%emt 00:01:51]} 30. axb3 {[%clk 00:30:54]} {[%emt 00:00:06]} Rg5
{[%clk 00:33:36]} {[%emt 00:00:08]} 31. b4 {[%clk 00:31:08]} {[%emt 00:00:18]}
Rb5 {[%clk 00:34:04]} {[%emt 00:00:02]} 32. Rb1 {[%clk 00:31:32]} {[%emt
00:00:06]} Ke5 {[%clk 00:34:18]} {[%emt 00:00:16]} 33. Kf1 {[%clk 00:31:28]}
{[%emt 00:00:34]} h5 {[%clk 00:33:10]} {[%emt 00:01:38]} 34. Ke2 {[%clk
00:31:41]} {[%emt 00:00:17]} Kd4 {[%clk 00:31:53]} {[%emt 00:01:47]} 35. g3
{[%clk 00:31:11]} {[%emt 00:01:01]} Kd5 {[%clk 00:29:04]} {[%emt 00:03:18]} 36.
Ke3 {[%clk 00:30:44]} {[%emt 00:00:58]} Ke5 {[%clk 00:29:30]} {[%emt 00:00:04]}
37. Rb2 {[%clk 00:30:57]} {[%emt 00:00:16]} Kd5 {[%clk 00:29:46]} {[%emt
00:00:14]} 38. h3 {[%clk 00:30:55]} {[%emt 00:00:32]} Ke5 {[%clk 00:30:10]}
{[%emt 00:00:05]} 39. Rb1 {[%clk 00:31:17]} {[%emt 00:00:09]} Kf5 {[%clk
00:30:00]} {[%emt 00:00:40]} 40. Kd4 {[%clk 00:30:12]} {[%emt 00:01:35]} Rd5+
{[%clk 00:30:18]} {[%emt 00:00:11]} 41. Kc4 {[%clk 00:28:36]} {[%emt 00:02:08]}
Rd2 {[%clk 00:30:29]} {[%emt 00:00:17]} 42. b5 {[%clk 00:29:01]} {[%emt
00:00:07]} Rxf2 {[%clk 00:30:55]} {[%emt 00:00:04]} 43. b6 {[%clk 00:29:25]}
{[%emt 00:00:06]} Rc2+ {[%clk 00:31:19]} {[%emt 00:00:05]} 44. Kd4 {[%clk
00:29:35]} {[%emt 00:00:19]} e5+ {[%clk 00:31:24]} {[%emt 00:00:26]} 45. Ke3
{[%clk 00:29:54]} {[%emt 00:00:10]} 1-0

[Event "Tournoi fermé pour norme de MI de Créon 2025"]
[Site "CREON, France"]
[Date "2025.08.02"]
[Round "8.5"]
[White "Malka, Samuel"]
[Black "Le Hetet, Nicolas"]
[Result "1-0"]
[TimeControl "1h30/40 - 30' + [30'']"]
[WhiteElo "2268"]
[BlackElo "2288"]

1. d4 {[%clk 01:30:54]} {[%emt 00:00:03]} d5 {[%clk 01:30:43]} {[%emt
00:00:18]} 2. c4 {[%clk 01:31:13]} {[%emt 00:00:12]} e6 {[%clk 01:30:46]}
{[%emt 00:00:26]} 3. Nf3 {[%clk 01:31:12]} {[%emt 00:00:31]} Nf6 {[%clk
01:31:04]} {[%emt 00:00:12]} 4. Nc3 {[%clk 01:30:51]} {[%emt 00:00:51]} c6
{[%clk 01:31:22]} {[%emt 00:00:12]} 5. e3 {[%clk 01:30:15]} {[%emt 00:01:06]}
Nbd7 {[%clk 01:31:42]} {[%emt 00:00:11]} 6. Qc2 {[%clk 01:30:40]} {[%emt
00:00:05]} Bd6 {[%clk 01:31:59]} {[%emt 00:00:13]} 7. Bd3 {[%clk 01:30:59]}
{[%emt 00:00:10]} O-O {[%clk 01:29:31]} {[%emt 00:02:58]} 8. O-O {[%clk
01:31:12]} {[%emt 00:00:17]} dxc4 {[%clk 01:27:56]} {[%emt 00:02:05]} 9. Bxc4
{[%clk 01:31:36]} {[%emt 00:00:06]} b5 {[%clk 01:28:20]} {[%emt 00:00:06]} 10.
Bd3 {[%clk 01:32:02]} {[%emt 00:00:04]} Bb7 {[%clk 01:28:45]} {[%emt 00:00:06]}
11. e4 {[%clk 01:31:25]} {[%emt 00:01:06]} e5 {[%clk 01:24:19]} {[%emt
00:04:57]} 12. Bg5 {[%clk 01:31:50]} {[%emt 00:00:04]} Qc7 {[%clk 01:16:53]}
{[%emt 00:07:56]} 13. Nxe5 {[%clk 01:20:00]} {[%emt 00:12:20]} b4 {[%clk
01:06:57]} {[%emt 00:10:26]} 14. Nxd7 {[%clk 01:08:58]} {[%emt 00:11:32]} Bxh2+
{[%clk 01:05:48]} {[%emt 00:01:40]} 15. Kh1 {[%clk 01:08:38]} {[%emt 00:00:51]}
Nxd7 {[%clk 01:06:08]} {[%emt 00:00:09]} 16. Ne2 {[%clk 01:06:04]} {[%emt
00:03:03]} h6 {[%clk 01:04:42]} {[%emt 00:01:57]} 17. Be7 {[%clk 00:53:54]}
{[%emt 00:12:40]} Rfe8 {[%clk 01:00:14]} {[%emt 00:04:59]} 18. Bxb4 {[%clk
00:53:30]} {[%emt 00:00:55]} Bd6 {[%clk 01:00:25]} {[%emt 00:00:19]} 19. Bxd6
{[%clk 00:52:55]} {[%emt 00:01:05]} Qxd6 {[%clk 01:00:50]} {[%emt 00:00:06]} 20.
f4 {[%clk 00:51:56]} {[%emt 00:01:28]} c5 {[%clk 00:57:36]} {[%emt 00:03:44]}
21. d5 {[%clk 00:51:10]} {[%emt 00:01:16]} Qe7 {[%clk 00:39:56]} {[%emt
00:18:10]} 22. Nc3 {[%clk 00:48:14]} {[%emt 00:03:25]} Nf6 {[%clk 00:34:46]}
{[%emt 00:05:41]} 23. Qf2 {[%clk 00:44:43]} {[%emt 00:04:00]} c4 {[%clk
00:34:01]} {[%emt 00:01:16]} 24. Bc2 {[%clk 00:44:27]} {[%emt 00:00:46]} Rab8
{[%clk 00:25:50]} {[%emt 00:08:42]} 25. Rad1 {[%clk 00:39:31]} {[%emt
00:05:24]} Ng4 {[%clk 00:25:53]} {[%emt 00:00:27]} 26. Qg3 {[%clk 00:38:55]}
{[%emt 00:01:06]} 1-0

[Event "Tournoi fermé pour norme de MI de Créon 2025"]
[Site "CREON, France"]
[Date "2025.08.02"]
[Round "8.1"]
[White "Lamaze, Simon"]
[Black "Villegas, Pierre"]
[Result "1-0"]
[TimeControl "1h30/40 - 30' + [30'']"]
[WhiteElo "2458"]
[BlackElo "2291"]

1. e4 {[%clk 01:30:52]} {[%emt 00:00:07]} c6 {[%clk 01:30:52]} {[%emt
00:00:08]} 2. d4 {[%clk 01:31:19]} {[%emt 00:00:03]} d5 {[%clk 01:31:18]}
{[%emt 00:00:04]} 3. e5 {[%clk 01:31:47]} {[%emt 00:00:03]} Bf5 {[%clk
01:31:31]} {[%emt 00:00:17]} 4. Nc3 {[%clk 01:32:12]} {[%emt 00:00:05]} e6
{[%clk 01:31:06]} {[%emt 00:00:55]} 5. g4 {[%clk 01:31:37]} {[%emt 00:01:05]}
Bg6 {[%clk 01:31:31]} {[%emt 00:00:05]} 6. Nge2 {[%clk 01:32:04]} {[%emt
00:00:03]} c5 {[%clk 01:31:53]} {[%emt 00:00:09]} 7. h4 {[%clk 01:32:30]}
{[%emt 00:00:04]} h5 {[%clk 01:31:47]} {[%emt 00:00:35]} 8. Nf4 {[%clk
01:32:49]} {[%emt 00:00:12]} Bh7 {[%clk 01:32:06]} {[%emt 00:00:11]} 9. Nxh5
{[%clk 01:33:14]} {[%emt 00:00:05]} Nc6 {[%clk 01:32:32]} {[%emt 00:00:04]} 10.
dxc5 {[%clk 01:33:38]} {[%emt 00:00:06]} Bxc5 {[%clk 01:32:12]} {[%emt
00:00:50]} 11. Bg5 {[%clk 01:34:04]} {[%emt 00:00:03]} 1-0

[Event "Tournoi fermé pour norme de MI de Créon 2025"]
[Site "CREON, France"]
[Date "2025.08.02"]
[Round "8.2"]
[White "Mohammad Nubairshah"]
[Black "Pichon, Ewen"]
[Result "1/2-1/2"]
[TimeControl "1h30/40 - 30' + [30'']"]
[WhiteElo "2378"]
[BlackElo "2311"]

1. d4 {[%clk 01:30:57]} {[%emt 00:00:02]} d5 {[%clk 01:30:56]} {[%emt
00:00:05]} 2. c4 {[%clk 01:31:23]} {[%emt 00:00:04]} c6 {[%clk 01:31:20]}
{[%emt 00:00:06]} 3. cxd5 {[%clk 01:31:42]} {[%emt 00:00:11]} cxd5 {[%clk
01:31:43]} {[%emt 00:00:06]} 4. Nc3 {[%clk 01:32:09]} {[%emt 00:00:02]} Nc6
{[%clk 01:31:59]} {[%emt 00:00:15]} 5. Nf3 {[%clk 01:32:33]} {[%emt 00:00:05]}
Nf6 {[%clk 01:32:23]} {[%emt 00:00:07]} 6. Bf4 {[%clk 01:32:46]} {[%emt
00:00:18]} Nh5 {[%clk 01:32:40]} {[%emt 00:00:13]} 7. Bc1 {[%clk 01:33:00]}
{[%emt 00:00:16]} Nf6 {[%clk 01:33:05]} {[%emt 00:00:05]} 8. Bf4 {[%clk
01:33:01]} {[%emt 00:00:28]} Nh5 {[%clk 01:33:08]} {[%emt 00:00:27]} 9. Bc1
{[%clk 01:33:01]} {[%emt 00:00:30]} Nf6 {[%clk 01:33:25]} {[%emt 00:00:13]} 10.
Bf4 {[%clk 01:32:50]} {[%emt 00:00:42]} Nh5 {[%clk 01:33:46]} {[%emt 00:00:09]}
1/2-1/2

[ePGN "0.1;DGT LiveChess/2.2.7"]